[Event "Athens of East Open 2019"]
[Site "Madurai"]
[Date "2019.08.11"]
[Round "6.3"]
[White "Prem, Anantha Rajan V."]
[Black "Sasikumar, Anusweud"]
[Result "0-1"]
[ECO "B00"]
[WhiteElo "1326"]
[BlackElo "1886"]
[Annotator "NA"]
[PlyCount "88"]
[EventDate "2019.08.10"]
[EventType "swiss"]
[EventCountry "IND"]
[SourceTitle "playchess.com"]
[Source "ChessBase"]
[SourceQuality "1"]
[TimeControl "3600+30"]

1. e4 {[%emt 0:00:00]} Nc6 2. Nf3 {[%emt 0:00:27]} e6 {[%emt 0:02:49]} 3. d4 {[%emt 0:01:20]} d5 {[%emt 0:04:04]} 4. e5 Nb8 5. Bd3 {[%emt 0:04:58]} c5 {[%emt 0:00:44]} 6. c3 {[%emt 0:00:46]} cxd4 {[%emt 0:00:23]} 7. Nxd4 {[%emt 0:03:10]} Nc6 8. f4 Bc5 {[%emt 0:03:27]} 9. Be3 {[%emt 0:09:34]} Nxd4 {[%emt 0:00:56]} 10. cxd4 Bb4+ 11. Bd2 {[%emt 0:01:58]} Bxd2+ {[%emt 0:00:48]} 12. Nxd2 {[%emt 0:02:59]} Qb6 {[%emt 0:01:57]} 13. Nb3 {[%emt 0:05:10]} Ne7 {[%emt 0:00:28]} 14. Rc1 {[%emt 0:04:16]} Bd7 15. Nc5 {[%emt 0:01:33]} Bc6 {[%emt 0:09:22]} 16. Qd2 {[%emt 0:05:37]} O-O {[%emt 0:05:48]} 17. O-O {[%emt 0:02:21]} Qd8 {[%emt 0:00:10]} 18. g4 {[%emt 0:00:51]} b6 19. Nb3 f5 {[%emt 0:04:55]} 20. gxf5 {[%emt 0:03:18]} exf5 {[%emt 0:00:15]} 21. Rf3 {[%emt 0:00:56]} Rc8 {[%emt 0:00:51]} 22. Rg3 {[%emt 0:01:45]} Ng6 {[%emt 0:00:41]} 23. Rg5 {[%emt 0:04:59]} Bd7 {[%emt 0:00:30]} 24. Rf1 {[%emt 0:01:08]} Rc6 {[%emt 0:05:21]} 25. Qg2 {[%emt 0:02:01]} Qe7 {[%emt 0:02:47]} 26. Qxd5+ {[%emt 0:01:21]} Kh8 {[%emt 0:00:41]} 27. Qf3 {[%emt 0:03:04]} h6 {[%emt 0:04:03]} 28. Rh5 {[%emt 0:02:28]} Qf7 {[%emt 0:01:19]} 29. d5 {[%emt 0:01:57]} Rc7 {[%emt 0:09:03]} 30. e6 {[%emt 0:00:17]} Bxe6 {[%emt 0:00:17]} 31. dxe6 {[%emt 0:00:08]} Qxe6 {[%emt 0:00:14]} 32. Nd4 {[%emt 0:01:29]} Qf7 {[%emt 0:01:40]} 33. Rxf5 {[%emt 0:02:26]} Qd7 {[%emt 0:00:16]} 34. Rxf8+ {[%emt 0:00:20]} Nxf8 {[%emt 0:01:20]} 35. Qe4 Rc8 {[%emt 0:00:13]} 36. Rd1 {[%emt 0:01:46]} Qg4+ {[%emt 0:00:11]} 37. Kf2 {[%emt 0:02:10]} Qxd1 {[%emt 0:00:26]} 38. Bc2 {[%emt 0:00:18]} Qd2+ {[%emt 0:01:55]} 39. Kf3 {[%emt 0:00:35]} Qxh2 {[%emt 0:00:31]} 40. Qf5 {[%emt 0:00:22]} Qh1+ {[%emt 0:00:33]} 41. Kg3 Qg1+ {[%emt 0:00:28]} 42. Kf3 {[%emt 0:00:34]} Re8 {[%emt 0:00:17]} 43. Ne6 Qf1+ {[%emt 0:00:06]} 44. Kg3 {[%emt 0:01:58]} Qe1+ 0-1

[Event "Athens of East Open 2019"]
[Site "Madurai"]
[Date "2019.08.11"]
[Round "6.4"]
[White "Mohammad Ismail Khadar"]
[Black "Abishek A"]
[Result "0-1"]
[ECO "D58"]
[WhiteElo "1480"]
[BlackElo "1693"]
[Annotator "NA"]
[PlyCount "70"]
[EventDate "2019.08.10"]
[EventType "swiss"]
[EventCountry "IND"]
[SourceTitle "playchess.com"]
[Source "ChessBase"]
[SourceQuality "1"]
[TimeControl "3600+30"]

1. d4 {[%emt 0:00:00]} Nf6 {[%emt 0:00:00]} 2. c4 {[%emt 0:00:00]} e6 {[%emt 0:00:04]} 3. Nc3 {[%emt 0:00:00]} d5 {[%emt 0:01:07]} 4. Bg5 {[%emt 0:00:00]} Be7 {[%emt 0:00:07]} 5. Nf3 {[%emt 0:00:11]} O-O {[%emt 0:00:11]} 6. e3 {[%emt 0:00:28]} h6 {[%emt 0:00:09]} 7. Bh4 {[%emt 0:00:11]} b6 {[%emt 0:00:22]} 8. Be2 {[%emt 0:03:04]} Bb7 {[%emt 0:00:48]} 9. O-O {[%emt 0:00:07]} Nbd7 {[%emt 0:00:19]} 10. Rc1 {[%emt 0:00:16]} c5 {[%emt 0:02:45]} 11. a3 {[%emt 0:01:26]} Rc8 {[%emt 0:02:16]} 12. dxc5 {[%emt 0:02:57]} bxc5 {[%emt 0:00:44]} 13. b3 {[%emt 0:02:44]} Nb6 {[%emt 0:02:50]} 14. Qc2 {[%emt 0:00:15]} Nh5 {[%emt 0:06:16]} 15. Bxe7 {[%emt 0:02:21]} Qxe7 {[%emt 0:00:02]} 16. Rfd1 {[%emt 0:02:03]} Rfd8 {[%emt 0:00:49]} 17. a4 {[%emt 0:00:51]} Nf6 {[%emt 0:06:40]} 18. Rd2 {[%emt 0:04:40]} a6 {[%emt 0:11:11]} 19. Rcd1 {[%emt 0:00:28]} Nbd7 {[%emt 0:04:01]} 20. cxd5 {[%emt 0:01:27]} exd5 {[%emt 0:00:14]} 21. Nxd5 {[%emt 0:00:17]} Nxd5 {[%emt 0:00:59]} 22. Rxd5 {[%emt 0:00:07]} Bxd5 {[%emt 0:00:52]} 23. Rxd5 {[%emt 0:00:09]} a5 {[%emt 0:06:30]} 24. g3 {[%emt 0:03:39]} Nb6 {[%emt 0:12:34]} 25. Re5 {[%emt 0:01:59]} Qc7 {[%emt 0:08:31]} 26. Ba6 {[%emt 0:02:00]} Nd7 {[%emt 0:01:41]} 27. Re7 {[%emt 0:00:28]} Qd6 {[%emt 0:00:26]} 28. Qe4 {[%emt 0:07:37]} Qxa6 {[%emt 0:00:22]} 29. Qd5 {[%emt 0:00:02]} Qf6 {[%emt 0:00:45]} 30. Rxd7 {[%emt 0:00:27]} Rxd7 {[%emt 0:00:20]} 31. Qxd7 {[%emt 0:00:08]} Qe6 {[%emt 0:00:30]} 32. Qb7 {[%emt 0:00:44]} Qc6 {[%emt 0:00:16]} 33. Qxc6 {[%emt 0:01:16]} Rxc6 {[%emt 0:00:01]} 34. Kf1 {[%emt 0:00:08]} c4 {[%emt 0:00:01]} 35. Ne5 {[%emt 0:00:24]} cxb3 {[%emt 0:00:13]} 0-1

[Event "Athens of East Open 2019"]
[Site "Madurai"]
[Date "2019.08.11"]
[Round "6.5"]
[White "Shreyas Seshadri Nallore"]
[Black "Ravi Chopra"]
[Result "1/2-1/2"]
[ECO "B30"]
[WhiteElo "1396"]
[BlackElo "1634"]
[Annotator "NA"]
[PlyCount "47"]
[EventDate "2019.08.10"]
[EventType "swiss"]
[EventCountry "IND"]
[SourceTitle "playchess.com"]
[Source "ChessBase"]
[SourceQuality "1"]
[TimeControl "3600+30"]

1. e4 {[%emt 0:00:00]} c5 {[%emt 0:00:00]} 2. Nf3 {[%emt 0:00:00]} Nc6 {[%emt 0:00:00]} 3. c3 d5 {[%emt 0:01:25]} 4. exd5 {[%emt 0:00:29]} Qxd5 {[%emt 0:00:18]} 5. d4 cxd4 {[%emt 0:06:00]} 6. cxd4 {[%emt 0:00:22]} e5 7. dxe5 Qxd1+ {[%emt 0:02:27]} 8. Kxd1 Bg4 9. Be2 {[%emt 0:11:41]} O-O-O+ {[%emt 0:00:46]} 10. Bd2 Bxf3 {[%emt 0:01:31]} 11. Bxf3 {[%emt 0:01:49]} Nxe5 {[%emt 0:00:17]} 12. Be2 {[%emt 0:00:38]} Bb4 {[%emt 0:00:55]} 13. Kc2 {[%emt 0:01:41]} Bxd2 {[%emt 0:00:52]} 14. Nxd2 {[%emt 0:00:09]} Nf6 {[%emt 0:00:25]} 15. Rac1 {[%emt 0:13:07]} Kb8 {[%emt 0:00:30]} 16. h3 {[%emt 0:15:36]} Rd7 17. Nf3 Nxf3 {[%emt 0:20:28]} 18. Bxf3 {[%emt 0:00:50]} Rc8+ {[%emt 0:00:12]} 19. Kb1 {[%emt 0:01:32]} Rxc1+ {[%emt 0:03:51]} 20. Kxc1 {[%emt 0:00:58]} Kc7 {[%emt 0:04:32]} 21. Kc2 {[%emt 0:02:31]} Ne8 22. Rc1 Nd6 {[%emt 0:06:22]} 23. Kd3+ {[%emt 0:03:45]} Kd8 {[%emt 0:01:13]} 24. Ke2 {[%emt 0:00:34]} 1/2-1/2

[Event "Athens of East Open 2019"]
[Site "Madurai"]
[Date "2019.08.12"]
[Round "7.1"]
[White "Ragesh Sarma.M"]
[Black "Sasikumar, Anusweud"]
[Result "1/2-1/2"]
[ECO "D11"]
[WhiteElo "1583"]
[BlackElo "1886"]
[Annotator "NA RC"]
[PlyCount "62"]
[EventDate "2019.08.10"]
[EventType "swiss"]
[EventCountry "IND"]
[SourceTitle "playchess.com"]
[Source "ChessBase"]
[SourceQuality "1"]
[TimeControl "3600+30"]

{[%evp 14,43,64,20,52,47,59,5,7,0,21,0,0,0,0,0,0,0,0,0,13,0,4,-6,0,0,2,1,10,5,36,29]} 1. d4 {[%emt 0:00:00]} d5 {[%emt 0:00:00]} 2. c4 {[%emt 0:00:24]} c6 {[%emt 0:00:09]} 3. Nf3 {[%emt 0:00:13]} Nf6 {[%emt 0:00:19]} 4. Bf4 {[%emt 0:00:22]} g6 {[%emt 0:02:45]} 5. e3 {[%emt 0:00:18]} Bg7 {[%emt 0:00:20]} 6. Nc3 {[%emt 0:00:19]} O-O {[%emt 0:00:17]} 7. Be2 {[%emt 0:00:27]} Bg4 {[%emt 0:03:07]} 8. O-O {[%emt 0:01:23] D93: Grünfeld: 4 Nf3 Bg7 5 Bf4 0-0 6 e3} Nbd7 {[%emt 0:03:10]} (8... Bxf3 9. Bxf3 dxc4 10. Qe2 Nd5 11. Bxb8 Rxb8 {½-½ (11) Wells,P (2419)-Arkell,K (2455) Cardiff 2016}) 9. cxd5 {[%emt 0:02:03]} cxd5 {[%emt 0:01:51]} 10. Ne5 $146 {[%emt 0:01:31]} ({Predecessor:} 10. h3 Bxf3 11. Bxf3 Nb6 12. b3 Rc8 13. Rc1 Qd7 14. Qe2 Rfd8 15. Rfd1 Rc6 {½-½ (45) Ungureanu,D (1303)-Ciobanu,S (1144) Baile Felix 2017}) 10... Bxe2 {[%emt 0:00:33]} 11. Nxe2 {[%emt 0:00:20]} Nh5 {[%emt 0:05:19]} 12. Nxd7 {[%emt 0:00:15]} Qxd7 {[%emt 0:01:23]} 13. Rc1 {[%emt 0:00:58]} Nxf4 {[%emt 0:01:01]} 14. Nxf4 {[%emt 0:00:03]} Rac8 {[%emt 0:00:50]} 15. Qd2 {[%emt 0:00:28]} e6 {[%emt 0:00:25]} 16. Nd3 {[%emt 0:00:40]} b6 {[%emt 0:00:51]} 17. h3 {[%emt 0:00:49]} Qb5 {[%emt 0:04:44]} 18. Nf4 {[%emt 0:03:21]} a5 {[%emt 0:07:24]} 19. Qe2 {[%emt 0:01:29]} Qb4 {[%emt 0:05:00]} 20. Nd3 {[%emt 0:00:50]} Qb5 {[%emt 0:00:34]} 21. Rc2 {[%emt 0:03:49]} Qa6 {[%emt 0:04:24]} 22. Rfc1 $11 {[%emt 0:00:48]} h6 {[%emt 0:02:36]} 23. Nf4 {[%emt 0:00:42]} Qxe2 {[%emt 0:05:46]} 24. Nxe2 {[%emt 0:00:18]} Rxc2 {[%emt 0:01:15]} 25. Rxc2 {[%emt 0:00:48]} Rb8 {[%emt 0:00:06]} 26. a3 {[%emt 0:00:47]} Bf8 {[%emt 0:01:04]} 27. Rc6 {[%emt 0:00:54]} b5 {[%emt 0:01:55]} 28. Nc1 {[%emt 0:00:53]} b4 {[%emt 0:00:33]} 29. a4 {[%emt 0:00:54]} Ra8 {[%emt 0:02:22]} 30. Nb3 {[%emt 0:00:35]} Be7 {[%emt 0:00:33]} 31. Nc5 {[%emt 0:00:06]} Kg7 {[%emt 0:00:31]} 1/2-1/2

[Event "Athens of East Open 2019"]
[Site "Madurai"]
[Date "2019.08.12"]
[Round "7.2"]
[White "Abishek A"]
[Black "Kannan, Ritish"]
[Result "1/2-1/2"]
[ECO "E06"]
[WhiteElo "1693"]
[BlackElo "1647"]
[Annotator "NA"]
[PlyCount "124"]
[EventDate "2019.08.10"]
[EventType "swiss"]
[EventCountry "IND"]
[SourceTitle "playchess.com"]
[Source "ChessBase"]
[SourceQuality "1"]
[TimeControl "3600+30"]

1. d4 {[%emt 0:00:00]} d5 {[%emt 0:00:24]} 2. Nf3 {[%emt 0:00:02]} Nf6 {[%emt 0:00:21]} 3. c4 {[%emt 0:00:29]} e6 {[%emt 0:00:08]} 4. g3 {[%emt 0:00:19]} Be7 {[%emt 0:00:09]} 5. Bg2 {[%emt 0:00:17]} O-O {[%emt 0:00:27]} 6. O-O {[%emt 0:00:16]} b6 {[%emt 0:01:12]} 7. Qc2 {[%emt 0:00:43]} Bb7 {[%emt 0:00:50]} 8. Rd1 {[%emt 0:00:36]} Nbd7 {[%emt 0:01:07]} 9. b3 {[%emt 0:02:53]} Rc8 {[%emt 0:02:14]} 10. Bb2 {[%emt 0:03:07]} c6 {[%emt 0:00:43]} 11. Nbd2 {[%emt 0:02:59]} Qc7 {[%emt 0:02:31]} 12. e4 {[%emt 0:05:11]} dxe4 {[%emt 0:03:09]} 13. Nxe4 {[%emt 0:00:07]} Nxe4 {[%emt 0:04:58]} 14. Qxe4 {[%emt 0:00:07]} c5 {[%emt 0:07:13]} 15. Qe2 {[%emt 0:01:54]} cxd4 {[%emt 0:03:33]} 16. Nxd4 Bxg2 {[%emt 0:01:25]} 17. Nxe6 {[%emt 0:24:16]} fxe6 {[%emt 0:33:57]} 18. Qxe6+ {[%emt 0:00:13]} Rf7 {[%emt 0:00:05]} 19. Rxd7 {[%emt 0:00:28]} Qc5 {[%emt 0:02:29]} 20. Bd4 {[%emt 0:00:55]} Qc6 {[%emt 0:00:40]} 21. Rxe7 {[%emt 0:00:28]} Qxe6 {[%emt 0:00:12]} 22. Rxe6 {[%emt 0:00:05]} Bh3 {[%emt 0:00:20]} 23. Rd6 {[%emt 0:00:58]} Re8 {[%emt 0:00:20]} 24. Be3 {[%emt 0:01:00]} h6 {[%emt 0:00:49]} 25. b4 {[%emt 0:01:22]} Bg4 {[%emt 0:00:57]} 26. c5 {[%emt 0:00:34]} bxc5 {[%emt 0:00:02]} 27. bxc5 {[%emt 0:00:07]} Bf3 {[%emt 0:00:20]} 28. Rb1 {[%emt 0:01:13]} Rc8 {[%emt 0:00:23]} 29. a4 {[%emt 0:02:55]} Rcc7 {[%emt 0:01:15]} 30. Kf1 {[%emt 0:02:21]} Rb7 {[%emt 0:00:44]} 31. Rc1 {[%emt 0:01:44]} Rfc7 {[%emt 0:01:04]} 32. c6 {[%emt 0:02:29]} Rb8 {[%emt 0:00:25]} 33. Rd7 {[%emt 0:03:27]} Rxc6 {[%emt 0:00:28]} 34. Rxc6 {[%emt 0:00:19]} Bxc6 {[%emt 0:00:02]} 35. Rxa7 {[%emt 0:00:07]} Bf3 {[%emt 0:01:37]} 36. Ke1 {[%emt 0:00:25]} Rd8 {[%emt 0:00:24]} 37. Bd2 {[%emt 0:01:06]} Re8+ {[%emt 0:00:27]} 38. Kf1 {[%emt 0:00:13]} Rb8 {[%emt 0:00:26]} 39. Rc7 {[%emt 0:01:41]} Rb1+ {[%emt 0:00:29]} 40. Rc1 {[%emt 0:00:09]} Rxc1+ {[%emt 0:00:15]} 41. Bxc1 {[%emt 0:00:04]} Kf7 {[%emt 0:00:19]} 42. Ke1 {[%emt 0:00:35]} Ke6 {[%emt 0:00:21]} 43. Kd2 {[%emt 0:01:52]} Kd6 {[%emt 0:00:16]} 44. Kc3 {[%emt 0:00:17]} h5 {[%emt 0:00:42]} 45. Kb4 {[%emt 0:01:38]} Kc6 {[%emt 0:00:17]} 46. Kc4 {[%emt 0:01:48]} Be4 {[%emt 0:00:11]} 47. a5 {[%emt 0:03:34]} Kb7 {[%emt 0:00:12]} 48. Be3 {[%emt 0:00:31]} g6 {[%emt 0:00:10]} 49. Kd4 {[%emt 0:00:18]} Bb1 {[%emt 0:00:09]} 50. Ke5 {[%emt 0:00:42]} Ka8 {[%emt 0:00:13]} 51. Kf6 {[%emt 0:01:32]} Bc2 {[%emt 0:00:08]} 52. h3 {[%emt 0:01:18]} Bb1 {[%emt 0:00:05]} 53. f3 {[%emt 0:00:12]} Bc2 {[%emt 0:00:06]} 54. f4 {[%emt 0:01:02]} Bb1 {[%emt 0:00:13]} 55. a6 {[%emt 0:01:00]} Bd3 {[%emt 0:00:13]} 56. a7 {[%emt 0:00:04]} Bb1 {[%emt 0:00:03]} 57. Kg5 {[%emt 0:00:24]} Bc2 {[%emt 0:00:07]} 58. g4 {[%emt 0:00:40]} hxg4 {[%emt 0:00:06]} 59. hxg4 {[%emt 0:00:07]} Bb1 {[%emt 0:00:02]} 60. Kf6 {[%emt 0:00:45]} Bc2 {[%emt 0:00:09]} 61. f5 {[%emt 0:00:15]} Bxf5 {[%emt 0:00:26]} 62. gxf5 {[%emt 0:00:04]} gxf5 {[%emt 0:00:04]} 1/2-1/2

[Event "Athens of East Open 2019"]
[Site "Madurai"]
[Date "2019.08.12"]
[Round "7.3"]
[White "Adithya Ramesh"]
[Black "Bala Ganeshan"]
[Result "1-0"]
[ECO "C58"]
[WhiteElo "1579"]
[BlackElo "1386"]
[Annotator "NA RC"]
[PlyCount "82"]
[EventDate "2019.08.10"]
[EventType "swiss"]
[EventCountry "IND"]
[SourceTitle "playchess.com"]
[Source "ChessBase"]
[SourceQuality "1"]
[TimeControl "3600+30"]

1. e4 {[%emt 0:00:00]} e5 {[%emt 0:00:00]} 2. Nf3 {[%emt 0:00:00]} Nc6 {[%emt 0:00:15]} 3. Bc4 {[%emt 0:00:00]} Nf6 {[%emt 0:00:30]} 4. Ng5 {[%emt 0:00:10]} d5 {[%emt 0:00:30]} 5. exd5 {[%emt 0:00:00]} Na5 {[%emt 0:01:51]} 6. Bb5+ {[%emt 0:00:12]} c6 {[%emt 0:01:36]} 7. dxc6 {[%emt 0:00:05]} bxc6 {[%emt 0:00:30]} 8. Bd3 {[%emt 0:00:30]} Bd7 9. Qf3 {[%emt 0:00:30]} Be7 {[%emt 0:07:00]} 10. b4 {[%emt 0:06:59]} Bxb4 {[%emt 0:04:55]} 11. O-O {[%emt 0:01:00]} O-O {[%emt 0:01:26]} 12. Nxh7 {[%emt 0:00:50]} Nxh7 {[%emt 0:04:04]} 13. Bxh7+ {[%emt 0:00:17]} Kxh7 {[%emt 0:00:13]} 14. Qe4+ f5 {[%emt 0:05:04]} 15. Qxb4 {[%emt 0:00:21]} Rb8 {[%emt 0:01:39]} 16. Qc3 {[%emt 0:01:07]} Rb5 17. Na3 {[%emt 0:06:54]} Rd5 {[%emt 0:04:20]} 18. Nc4 Nxc4 {[%emt 0:02:41]} 19. Qxc4 {[%emt 0:02:11]} Rd4 {[%emt 0:05:10]} 20. Qc5 {[%emt 0:00:16]} Qf6 {[%emt 0:05:42]} 21. f4 {[%emt 0:04:19]} Rxf4 {[%emt 0:04:09]} 22. Bb2 Qf7 {[%emt 0:00:27]} 23. Bxe5 {[%emt 0:06:51]} Rc4 {[%emt 0:04:21]} 24. Qxa7 {[%emt 0:02:47]} Qd5 {[%emt 0:03:25]} 25. Bc3 Rg4 26. Qf2 {[%emt 0:02:13]} c5 {[%emt 0:01:31]} 27. Qf3 {[%emt 0:03:19]} Qd6 {[%emt 0:00:48]} 28. Qd3 {[%emt 0:01:12]} Qc7 {[%emt 0:09:28]} 29. Rf3 {[%emt 0:04:09]} c4 {[%emt 0:01:13]} 30. Rh3+ {[%emt 0:02:10]} Kg8 {[%emt 0:00:04]} 31. Qd5+ {[%emt 0:00:45]} Rf7 {[%emt 0:00:30]} 32. Be5 {[%emt 0:02:32]} Qa7+ {[%emt 0:01:07]} 33. Kh1 {[%emt 0:00:47]} Qa6 {[%emt 0:00:53]} 34. Rb1 {[%emt 0:00:58]} Qe6 {[%emt 0:00:59]} 35. Rb8+ {[%emt 0:01:41]} Rf8 {[%emt 0:00:01]} 36. Rxf8+ {[%emt 0:00:38]} Kxf8 {[%emt 0:00:15]} 37. Rh8+ {[%emt 0:00:44]} Kf7 {[%emt 0:00:04]} 38. Qc5 {[%emt 0:00:56]} Re4 {[%emt 0:01:30]} 39. Qf8+ {Rg4 Qc5} Kg6 40. Qd6 {Re4 Qxe6+ Bxe6 Bg3} Re2 41. Rd8 c3 1-0

[Event "Athens of East Open 2019"]
[Site "Madurai"]
[Date "2019.08.12"]
[Round "7.4"]
[White "Sanil S"]
[Black "Hiridik Rajendran"]
[Result "0-1"]
[ECO "B27"]
[WhiteElo "1462"]
[BlackElo "1565"]
[Annotator "NA RC"]
[PlyCount "84"]
[EventDate "2019.08.10"]
[EventType "swiss"]
[EventCountry "IND"]
[SourceTitle "playchess.com"]
[Source "ChessBase"]
[SourceQuality "1"]
[TimeControl "3600+30"]

1. e4 {[%emt 0:00:00]} c5 {[%emt 0:01:11]} 2. Nf3 {[%emt 0:03:25]} g6 {[%emt 0:00:22]} 3. d4 Bg7 {[%emt 0:02:40]} 4. d5 {[%emt 0:03:55]} d6 {[%emt 0:00:18]} 5. Bb5+ {[%emt 0:01:07]} Bd7 {[%emt 0:00:43]} 6. Bxd7+ {[%emt 0:00:54]} Nxd7 {[%emt 0:00:16]} 7. O-O {[%emt 0:00:04]} b5 {[%emt 0:00:14]} 8. c3 {[%emt 0:00:06]} Ngf6 {[%emt 0:00:38]} 9. Re1 {[%emt 0:00:31]} O-O {[%emt 0:00:28]} 10. Nbd2 {[%emt 0:04:45]} Ng4 {[%emt 0:00:57]} 11. Nf1 {[%emt 0:03:10]} Nge5 {[%emt 0:00:36]} 12. N3d2 {[%emt 0:00:37]} c4 {[%emt 0:05:42]} 13. Nf3 {[%emt 0:00:32]} Nxf3+ {[%emt 0:01:35]} 14. Qxf3 {[%emt 0:05:47]} Ne5 {[%emt 0:00:08]} 15. Qd1 {[%emt 0:00:28]} Nd3 {[%emt 0:00:09]} 16. Re2 {[%emt 0:01:01]} e5 {[%emt 0:00:28]} 17. b4 {[%emt 0:01:49]} a5 {[%emt 0:01:14]} 18. Bd2 {[%emt 0:10:44]} axb4 {[%emt 0:00:26]} 19. cxb4 {[%emt 0:00:02]} Ra4 {[%emt 0:00:26]} 20. Ne3 {[%emt 0:07:53]} Qd7 {[%emt 0:02:36]} 21. Nc2 {[%emt 0:01:05]} f5 {[%emt 0:00:44]} 22. f3 {[%emt 0:00:49]} f4 {[%emt 0:00:12]} 23. Qb1 {[%emt 0:02:02]} g5 {[%emt 0:01:32]} 24. Ne1 {[%emt 0:00:15]} Nxe1 {[%emt 0:00:44]} 25. Qxe1 {[%emt 0:00:39]} Rfa8 {[%emt 0:00:31]} 26. Bc3 {[%emt 0:00:30]} R8a6 {[%emt 0:01:29]} 27. Kh1 {[%emt 0:00:13]} Bf6 {[%emt 0:01:12]} 28. Rc2 {[%emt 0:00:56]} Kh8 {[%emt 0:02:16]} 29. g4 {[%emt 0:00:19]} Qa7 {[%emt 0:01:51]} 30. Qf2 {[%emt 0:01:31]} Qxf2 {[%emt 0:00:26]} 31. Rxf2 {[%emt 0:00:02]} Bd8 {[%emt 0:00:16]} 32. Kg2 {[%emt 0:06:29]} Bb6 {[%emt 0:01:25]} 33. Re2 {[%emt 0:00:09]} Ra3 {[%emt 0:00:22]} 34. Bb2 {[%emt 0:00:08]} Rd3 {[%emt 0:00:28]} 35. Rc1 {[%emt 0:01:39]} Kg8 {[%emt 0:00:19]} 36. Bc3 {[%emt 0:02:15]} Ra3 {[%emt 0:00:20]} 37. Rec2 {[%emt 0:00:19]} Be3 {[%emt 0:00:11]} 38. Bb2 {[%emt 0:00:32]} Bxc1 {[%emt 0:00:15]} 39. Bxc1 {[%emt 0:00:02]} Rac3 {[%emt 0:00:30]} 40. Rb2 {[%emt 0:00:27]} Rxc1 {[%emt 0:00:17]} 41. a4 {[%emt 0:00:01]} bxa4 {[%emt 0:00:24]} 42. b5 {[%emt 0:00:00]} Rb3 {[%emt 0:00:12]} 0-1

[Event "Athens of East Open 2019"]
[Site "Madurai"]
[Date "2019.08.12"]
[Round "7.5"]
[White "Sankaranarayanan.K"]
[Black "Rajat Yadav"]
[Result "0-1"]
[ECO "E73"]
[WhiteElo "1695"]
[BlackElo "1455"]
[Annotator "NA RC"]
[PlyCount "68"]
[EventDate "2019.08.10"]
[EventType "swiss"]
[EventCountry "IND"]
[SourceTitle "playchess.com"]
[Source "ChessBase"]
[SourceQuality "1"]
[TimeControl "3600+30"]

1. d4 {[%emt 0:00:29]} Nf6 {[%emt 0:00:00]} 2. c4 {[%emt 0:00:06]} d6 {[%emt 0:00:00]} 3. Nc3 {[%emt 0:00:07]} g6 {[%emt 0:00:02]} 4. e4 {[%emt 0:00:10]} Bg7 {[%emt 0:00:02]} 5. Be2 {[%emt 0:01:52]} O-O {[%emt 0:01:10]} 6. f4 {[%emt 0:05:01]} e5 7. dxe5 dxe5 {[%emt 0:02:41]} 8. Qxd8 {[%emt 0:00:36]} Rxd8 {[%emt 0:06:31]} 9. fxe5 {[%emt 0:01:26]} Nfd7 {[%emt 0:05:34]} 10. Nd5 {[%emt 0:01:25]} Bxe5 {[%emt 0:00:10]} 11. Nf3 {[%emt 0:01:06]} Bd6 12. O-O {[%emt 0:00:30]} c6 {[%emt 0:01:18]} 13. Nc3 {[%emt 0:01:43]} Ne5 {[%emt 0:01:21]} 14. Bg5 {[%emt 0:01:01]} Re8 {[%emt 0:00:17]} 15. Rad1 {[%emt 0:00:35]} Nxf3+ {[%emt 0:00:36]} 16. Rxf3 {[%emt 0:00:23]} Bc5+ {[%emt 0:00:15]} 17. Kh1 Be6 {[%emt 0:01:04]} 18. Rfd3 {[%emt 0:03:41]} Na6 {[%emt 0:02:35]} 19. R3d2 {[%emt 0:04:36]} Bb4 20. Rc2 {[%emt 0:01:23]} Nc5 {[%emt 0:02:16]} 21. Rd4 f5 {[%emt 0:05:01]} 22. e5 {[%emt 0:12:00]} Bf7 {[%emt 0:00:34]} 23. Nd1 {[%emt 0:07:11]} Ne6 24. Be3 {[%emt 0:09:35]} Nxd4 {[%emt 0:00:48]} 25. Bxd4 {[%emt 0:04:04]} c5 {[%emt 0:04:41]} 26. Bf2 {[%emt 0:00:42]} Rxe5 {[%emt 0:01:03]} 27. Bf3 Rd8 28. g3 {[%emt 0:01:30]} b6 {[%emt 0:01:23]} 29. Kg2 Bd2 30. Kf1 {[%emt 0:01:14]} Bh6 {[%emt 0:01:16]} 31. Nc3 {[%emt 0:00:40]} Bxc4+ {[%emt 0:00:22]} 32. Kg2 Rd2 33. Rxd2 {[%emt 0:02:14]} Bxd2 {[%emt 0:00:37]} 34. Nb1 {[%emt 0:00:05]} Ba5 0-1

[Event "Athens of East Open 2019"]
[Site "Madurai"]
[Date "2019.08.12"]
[Round "8.1"]
[White "Rajat Yadav"]
[Black "Ragesh Sarma.M"]
[Result "1-0"]
[ECO "A12"]
[WhiteElo "1455"]
[BlackElo "1583"]
[Annotator "NA"]
[PlyCount "65"]
[EventDate "2019.08.10"]
[EventType "swiss"]
[EventCountry "IND"]
[SourceTitle "playchess.com"]
[Source "ChessBase"]
[SourceQuality "1"]
[TimeControl "3600+30"]

1. Nf3 d5 2. c4 c6 3. b3 Bf5 4. Bb2 e6 5. e3 {[%emt 0:02:44]} Nf6 {[%emt 0:02:58]} 6. Be2 {[%emt 0:00:56]} Be7 {[%emt 0:00:25]} 7. O-O {[%emt 0:00:11]} O-O {[%emt 0:00:59]} 8. d4 {[%emt 0:00:40]} Nbd7 {[%emt 0:00:15]} 9. Nc3 {[%emt 0:00:36]} Qc7 {[%emt 0:04:09]} 10. Rc1 {[%emt 0:00:52]} Rac8 {[%emt 0:00:40]} 11. Ne5 Qb8 {[%emt 0:13:28]} 12. g4 {[%emt 0:07:39]} Bg6 {[%emt 0:02:26]} 13. g5 {[%emt 0:00:40]} Nxe5 {[%emt 0:04:36]} 14. gxf6 {[%emt 0:00:19]} Bxf6 {[%emt 0:00:43]} 15. dxe5 {[%emt 0:00:09]} Qxe5 {[%emt 0:00:09]} 16. Bf3 {[%emt 0:04:14]} dxc4 {[%emt 0:02:51]} 17. bxc4 {[%emt 0:03:01]} Rfd8 {[%emt 0:02:35]} 18. Qb3 {[%emt 0:01:18]} Qg5+ {[%emt 0:01:28]} 19. Kh1 {[%emt 0:01:58]} Qh4 {[%emt 0:00:48]} 20. Ne2 {[%emt 0:07:23]} Be7 {[%emt 0:06:36]} 21. Ng3 {[%emt 0:01:17]} f5 {[%emt 0:04:13]} 22. Be5 b6 {[%emt 0:10:22]} 23. c5 {[%emt 0:07:17]} Bf7 {[%emt 0:07:35]} 24. cxb6 {[%emt 0:01:07]} axb6 {[%emt 0:00:02]} 25. Qb2 {[%emt 0:02:20]} Qh6 {[%emt 0:01:09]} 26. Rxc6 {[%emt 0:00:46]} Rxc6 {[%emt 0:02:39]} 27. Bxc6 {[%emt 0:00:07]} Bc5 {[%emt 0:00:12]} 28. Rg1 {[%emt 0:03:11]} g5 {[%emt 0:01:00]} 29. Bf6 {[%emt 0:01:57]} Rd6 {[%emt 0:00:58]} 30. Nxf5 {[%emt 0:04:44]} exf5 {[%emt 0:00:33]} 31. Bxg5 {[%emt 0:03:17]} Qg6 {[%emt 0:00:19]} 32. Bf6 {[%emt 0:02:04]} Rxf6 {[%emt 0:01:07]} 33. Qxf6 {[%emt 0:00:20]} 1-0